[Event "*** Titled Tuesday Blitz"]
[Site "Chess.com"]
[Date "2021.02.02"]
[Round "9"]
[White "SanQui14"]
[Black "Vandros57"]
[Result "1-0"]
[WhiteElo "2434"]
[BlackElo "2249"]
[TimeControl "180+1"]
[EndTime "11:44:30 PST"]
[Termination "SanQui14 won by resignation"]

1. d4 {[%clk 0:03:00.9]} 1... d5 {[%clk 0:02:58.6]} 2. c4 {[%clk 0:03:00.2]}
2... e6 {[%clk 0:02:58.5]} 3. Nc3 {[%clk 0:02:59.6]} 3... Nf6 {[%clk 0:02:58.4]}
4. Bg5 {[%clk 0:02:59.8]} 4... Be7 {[%clk 0:02:58.1]} 5. cxd5 {[%clk 0:02:57.8]}
5... Nxd5 {[%clk 0:02:56.4]} 6. Bxe7 {[%clk 0:02:57.5]} 6... Qxe7 {[%clk
0:02:56.2]} 7. e4 {[%clk 0:02:57.9]} 7... Nxc3 {[%clk 0:02:55.6]} 8. bxc3 {[%clk
0:02:58.8]} 8... O-O {[%clk 0:02:55.4]} 9. Nf3 {[%clk 0:02:59]} 9... c5 {[%clk
0:02:54.2]} 10. Bd3 {[%clk 0:02:59.5]} 10... cxd4 {[%clk 0:02:53.6]} 11. cxd4
{[%clk 0:03:00.4]} 11... Qb4+ {[%clk 0:02:53]} 12. Qd2 {[%clk 0:02:59.7]} 12...
Qxd2+ {[%clk 0:02:52.8]} 13. Kxd2 {[%clk 0:03:00.5]} 13... b6 {[%clk 0:02:52.8]}
14. Rhc1 {[%clk 0:03:00]} 14... Ba6 {[%clk 0:02:49.1]} 15. Rc7 {[%clk
0:02:58.4]} 15... Bxd3 {[%clk 0:02:42.4]} 16. Kxd3 {[%clk 0:02:59.3]} 16... Na6
{[%clk 0:02:40.9]} 17. Re7 {[%clk 0:02:54.6]} 17... Rfe8 {[%clk 0:02:37.5]} 18.
Rb7 {[%clk 0:02:48.1]} 18... Reb8 {[%clk 0:02:24.2]} 19. Rxb8+ {[%clk
0:02:42.8]} 19... Rxb8 {[%clk 0:02:23.4]} 20. a3 {[%clk 0:02:43.5]} 20... Rc8
{[%clk 0:02:21.6]} 21. Ne5 {[%clk 0:02:26.1]} 21... f6 {[%clk 0:02:16.3]} 22.
Nc4 {[%clk 0:02:25]} 22... Kf8 {[%clk 0:02:14.7]} 23. Nd6 {[%clk 0:02:24.3]}
23... Rc6 {[%clk 0:02:09.2]} 24. Nb5 {[%clk 0:02:23.3]} 24... e5 {[%clk
0:01:40.6]} 25. Nxa7 {[%clk 0:02:16.6]} 25... Rd6 {[%clk 0:01:37.8]} 26. d5
{[%clk 0:02:16.7]} 26... Nc5+ {[%clk 0:01:36.5]} 27. Ke3 {[%clk 0:02:15.4]}
27... f5 {[%clk 0:01:29.2]} 28. f3 {[%clk 0:02:09.7]} 28... f4+ {[%clk
0:01:28.4]} 29. Kf2 {[%clk 0:02:05]} 29... Nd3+ {[%clk 0:01:26.1]} 30. Ke2
{[%clk 0:02:03.5]} 30... Nb2 {[%clk 0:01:19.8]} 31. Rc1 {[%clk 0:02:00.8]} 31...
Rg6 {[%clk 0:01:11.9]} 32. Kf1 {[%clk 0:01:59.3]} 32... Nd3 {[%clk 0:01:06.4]}
33. Rc7 {[%clk 0:01:54.8]} 33... b5 {[%clk 0:00:58.1]} 34. Nc6 {[%clk
0:01:46.6]} 34... b4 {[%clk 0:00:41.2]} 35. axb4 {[%clk 0:01:46.1]} 35... h5
{[%clk 0:00:37.4]} 36. b5 {[%clk 0:01:45.6]} 36... h4 {[%clk 0:00:34.8]} 37. h3
{[%clk 0:01:45.6]} 1-0

[Event "*** Titled Tuesday Blitz"]
[Site "Chess.com"]
[Date "2021.02.02"]
[Round "9"]
[White "InitiatingASC"]
[Black "Nachsueb"]
[Result "1-0"]
[WhiteElo "2392"]
[BlackElo "2169"]
[TimeControl "180+1"]
[EndTime "11:44:38 PST"]
[Termination "InitiatingASC won by resignation"]

1. Nf3 {[%clk 0:03:00.9]} 1... c5 {[%clk 0:02:59.1]} 2. g3 {[%clk 0:03:01.2]}
2... g6 {[%clk 0:02:57.7]} 3. Bg2 {[%clk 0:03:02.1]} 3... Nc6 {[%clk 0:02:58.2]}
4. O-O {[%clk 0:03:03]} 4... Bg7 {[%clk 0:02:57.7]} 5. c4 {[%clk 0:03:01.7]}
5... e5 {[%clk 0:02:57.9]} 6. d3 {[%clk 0:03:01.9]} 6... Nge7 {[%clk 0:02:57.9]}
7. Nc3 {[%clk 0:03:01.8]} 7... O-O {[%clk 0:02:57.4]} 8. Ne1 {[%clk 0:03:02.4]}
8... d6 {[%clk 0:02:55]} 9. Nc2 {[%clk 0:03:02.8]} 9... Be6 {[%clk 0:02:53.9]}
10. Ne3 {[%clk 0:03:03.2]} 10... f5 {[%clk 0:02:53.5]} 11. Ncd5 {[%clk
0:03:01.4]} 11... a6 {[%clk 0:02:47.2]} 12. Rb1 {[%clk 0:02:58.1]} 12... Rb8
{[%clk 0:02:43.4]} 13. a4 {[%clk 0:02:43.1]} 13... f4 {[%clk 0:02:40.8]} 14.
Nxe7+ {[%clk 0:02:42.7]} 14... Nxe7 {[%clk 0:02:36.1]} 15. Nd5 {[%clk 0:02:43]}
15... Nxd5 {[%clk 0:02:22.8]} 16. cxd5 {[%clk 0:02:43.9]} 16... Bd7 {[%clk
0:02:17.6]} 17. b4 {[%clk 0:02:44.2]} 17... b6 {[%clk 0:02:11.4]} 18. Bd2 {[%clk
0:02:33.6]} 18... g5 {[%clk 0:02:03.1]} 19. Qb3 {[%clk 0:02:29.4]} 19... Qe7
{[%clk 0:01:44.5]} 20. bxc5 {[%clk 0:02:20.9]} 20... bxc5 {[%clk 0:01:45.4]} 21.
Qxb8 {[%clk 0:02:20.8]} 21... Rxb8 {[%clk 0:01:46.3]} 22. Rxb8+ {[%clk
0:02:21.2]} 22... Kf7 {[%clk 0:01:46.4]} 23. Rfb1 {[%clk 0:02:18.1]} 23... h5
{[%clk 0:01:21.5]} 24. R1b7 {[%clk 0:02:15.1]} 24... g4 {[%clk 0:01:20.7]} 25.
Be4 {[%clk 0:02:14.5]} 25... Kf6 {[%clk 0:01:17.5]} 26. Ba5 {[%clk 0:02:11.9]}
26... Bxa4 {[%clk 0:00:38.4]} 27. Bd8 {[%clk 0:02:08.5]} 27... Bf8 {[%clk
0:00:32.8]} 28. Bxe7+ {[%clk 0:01:57.6]} 28... Bxe7 {[%clk 0:00:33.7]} 29. Rh8
{[%clk 0:01:49.5]} 29... Bd1 {[%clk 0:00:12.5]} 30. Rh6+ {[%clk 0:01:46]} 30...
Kg7 {[%clk 0:00:10.7]} 31. Rh7+ {[%clk 0:01:46.3]} 31... Kf8 {[%clk 0:00:10.7]}
32. Rbxe7 {[%clk 0:01:45.8]} 32... Bxe2 {[%clk 0:00:09.5]} 33. Ref7+ {[%clk
0:01:43.5]} 33... Ke8 {[%clk 0:00:08.7]} 34. Ra7 {[%clk 0:01:43.3]} 1-0

[Event "*** Titled Tuesday Blitz"]
[Site "Chess.com"]
[Date "2021.02.02"]
[Round "9"]
[White "Ave_Mariia"]
[Black "A-S-00"]
[Result "1-0"]
[WhiteElo "2480"]
[BlackElo "2336"]
[TimeControl "180+1"]
[EndTime "11:44:39 PST"]
[Termination "Ave_Mariia won by resignation"]

1. d4 {[%clk 0:03:00.9]} 1... Nf6 {[%clk 0:02:58.5]} 2. c4 {[%clk 0:03:00.4]}
2... g6 {[%clk 0:02:59.1]} 3. Nc3 {[%clk 0:02:59.1]} 3... Bg7 {[%clk 0:02:59.7]}
4. e4 {[%clk 0:02:59.1]} 4... d6 {[%clk 0:03:00.3]} 5. Be2 {[%clk 0:02:59.1]}
5... O-O {[%clk 0:03:00.8]} 6. Nf3 {[%clk 0:02:59.4]} 6... Nbd7 {[%clk
0:03:01.2]} 7. O-O {[%clk 0:02:58.4]} 7... e5 {[%clk 0:03:01.5]} 8. Re1 {[%clk
0:02:50]} 8... a5 {[%clk 0:02:48.2]} 9. Bf1 {[%clk 0:02:47.9]} 9... exd4 {[%clk
0:02:42.3]} 10. Nxd4 {[%clk 0:02:45.8]} 10... Re8 {[%clk 0:02:42.8]} 11. f3
{[%clk 0:02:38]} 11... Nc5 {[%clk 0:02:40]} 12. Be3 {[%clk 0:02:35.7]} 12...
Nfd7 {[%clk 0:02:23.6]} 13. Qd2 {[%clk 0:02:32.4]} 13... a4 {[%clk 0:02:02.7]}
14. Rad1 {[%clk 0:02:26.5]} 14... Nf8 {[%clk 0:01:53.4]} 15. Ndb5 {[%clk
0:02:17]} 15... Nfe6 {[%clk 0:01:46.1]} 16. f4 {[%clk 0:02:10.8]} 16... Bd7
{[%clk 0:01:31.4]} 17. Bf2 {[%clk 0:02:00.8]} 17... Bc6 {[%clk 0:01:18.9]} 18.
Nd5 {[%clk 0:01:57.5]} 18... Bxb5 {[%clk 0:01:02]} 19. cxb5 {[%clk 0:01:58.4]}
19... Nf8 {[%clk 0:00:57.2]} 20. e5 {[%clk 0:01:55.4]} 20... Nce6 {[%clk
0:00:46.4]} 21. Qc2 {[%clk 0:01:45.6]} 21... dxe5 {[%clk 0:00:44.2]} 22. fxe5
{[%clk 0:01:41.1]} 22... Qg5 {[%clk 0:00:42.5]} 23. h4 {[%clk 0:01:37.7]} 23...
Qg4 {[%clk 0:00:29.2]} 24. Re4 {[%clk 0:01:33]} 24... Qf5 {[%clk 0:00:18.9]} 25.
g4 {[%clk 0:01:32.1]} 25... Qf3 {[%clk 0:00:14.3]} 26. Bg2 {[%clk 0:01:31]}
26... Nd4 {[%clk 0:00:10.8]} 27. Rdxd4 {[%clk 0:01:22.6]} 1-0

[Event "*** Titled Tuesday Blitz"]
[Site "Chess.com"]
[Date "2021.02.02"]
[Round "9"]
[White "Oleksandr_Bortnyk"]
[Black "CrushingKings"]
[Result "1-0"]
[WhiteElo "2896"]
[BlackElo "2384"]
[TimeControl "180+1"]
[EndTime "11:44:46 PST"]
[Termination "Oleksandr_Bortnyk won by resignation"]

1. e4 {[%clk 0:03:00.9]} 1... c5 {[%clk 0:02:58.3]} 2. c3 {[%clk 0:02:59.7]}
2... Nf6 {[%clk 0:02:57.5]} 3. e5 {[%clk 0:02:59.1]} 3... Nd5 {[%clk 0:02:57.9]}
4. d4 {[%clk 0:03:00]} 4... cxd4 {[%clk 0:02:57]} 5. Nf3 {[%clk 0:03:00.9]} 5...
Nc6 {[%clk 0:02:56.2]} 6. cxd4 {[%clk 0:03:01.8]} 6... d6 {[%clk 0:02:54.3]} 7.
Nc3 {[%clk 0:03:01.3]} 7... Nxc3 {[%clk 0:02:22]} 8. bxc3 {[%clk 0:03:02.2]}
8... Bg4 {[%clk 0:02:22.1]} 9. Rb1 {[%clk 0:02:20.6]} 9... Qc8 {[%clk
0:02:03.1]} 10. h3 {[%clk 0:02:12.8]} 10... Bf5 {[%clk 0:01:47]} 11. Rb3 {[%clk
0:02:04.4]} 11... e6 {[%clk 0:01:41.6]} 12. Bf4 {[%clk 0:02:04.3]} 12... dxe5
{[%clk 0:01:34]} 13. Nxe5 {[%clk 0:02:05.2]} 13... Bd6 {[%clk 0:01:09.3]} 14. g4
{[%clk 0:01:47.7]} 14... Be4 {[%clk 0:00:58]} 15. f3 {[%clk 0:01:47]} 15... Bg6
{[%clk 0:00:21.7]} 16. Nxg6 {[%clk 0:01:45.8]} 16... Bxf4 {[%clk 0:00:15.4]} 17.
Nxf4 {[%clk 0:01:46.7]} 17... Qc7 {[%clk 0:00:16]} 18. Ne2 {[%clk 0:01:43.9]}
18... O-O {[%clk 0:00:16]} 19. Bg2 {[%clk 0:01:44.2]} 19... e5 {[%clk
0:00:16.5]} 20. d5 {[%clk 0:01:43.2]} 20... Na5 {[%clk 0:00:16.6]} 21. Rb4
{[%clk 0:01:41.3]} 21... e4 {[%clk 0:00:15.1]} 22. Rxe4 {[%clk 0:01:40.3]} 22...
Qb6 {[%clk 0:00:14.2]} 23. Qd4 {[%clk 0:01:39.3]} 23... Qb1+ {[%clk 0:00:14.2]}
24. Kf2 {[%clk 0:01:39.7]} 24... Qb2 {[%clk 0:00:14.8]} 25. c4 {[%clk
0:01:32.1]} 25... Qxa2 {[%clk 0:00:14.3]} 26. Ra1 {[%clk 0:01:31.7]} 26... Qb3
{[%clk 0:00:12.6]} 27. Rxa5 {[%clk 0:01:31.6]} 27... b6 {[%clk 0:00:12.8]} 28.
Rb5 {[%clk 0:01:31.3]} 28... Qa3 {[%clk 0:00:13.5]} 29. d6 {[%clk 0:01:31.7]}
29... Rad8 {[%clk 0:00:12.9]} 30. Rg5 {[%clk 0:01:31.3]} 30... f6 {[%clk
0:00:10.6]} 31. Re7 {[%clk 0:01:31.6]} 31... Rf7 {[%clk 0:00:07.9]} 32. Qd5
{[%clk 0:01:25.9]} 32... Rf8 {[%clk 0:00:05.1]} 33. Rxf7 {[%clk 0:01:26.2]}
33... Rxf7 {[%clk 0:00:05.6]} 34. d7 {[%clk 0:01:26.9]} 1-0

[Event "*** Titled Tuesday Blitz"]
[Site "Chess.com"]
[Date "2021.02.02"]
[Round "9"]
[White "EugeneRougon"]
[Black "awesomevishesh"]
[Result "1-0"]
[WhiteElo "2720"]
[BlackElo "2497"]
[TimeControl "180+1"]
[EndTime "11:44:50 PST"]
[Termination "EugeneRougon won on time"]

1. e4 {[%clk 0:03:00.9]} 1... c5 {[%clk 0:02:59.4]} 2. Nf3 {[%clk 0:03:00.4]}
2... d6 {[%clk 0:02:59.7]} 3. d4 {[%clk 0:03:01]} 3... cxd4 {[%clk 0:03:00.6]}
4. Nxd4 {[%clk 0:03:01.9]} 4... Nf6 {[%clk 0:03:00.7]} 5. Nc3 {[%clk 0:03:02.6]}
5... a6 {[%clk 0:03:00.7]} 6. Be3 {[%clk 0:03:02.7]} 6... e5 {[%clk 0:03:00.5]}
7. Nf3 {[%clk 0:03:03.3]} 7... Be7 {[%clk 0:02:59.5]} 8. Bc4 {[%clk 0:03:03.8]}
8... Be6 {[%clk 0:02:59.2]} 9. Bxe6 {[%clk 0:03:03.3]} 9... fxe6 {[%clk
0:02:59]} 10. Ng5 {[%clk 0:03:04.2]} 10... Qd7 {[%clk 0:02:56.7]} 11. Qf3 {[%clk
0:03:04.8]} 11... d5 {[%clk 0:02:46.7]} 12. O-O-O {[%clk 0:03:04.3]} 12... d4
{[%clk 0:02:41.8]} 13. Bxd4 {[%clk 0:03:04.6]} 13... exd4 {[%clk 0:02:34.2]} 14.
e5 {[%clk 0:03:05.5]} 14... O-O {[%clk 0:02:30.3]} 15. exf6 {[%clk 0:03:00.1]}
15... Bxf6 {[%clk 0:02:24.1]} 16. Qh5 {[%clk 0:02:49.4]} 16... Bxg5+ {[%clk
0:01:49.7]} 17. Qxg5 {[%clk 0:02:49]} 17... Rxf2 {[%clk 0:01:22.9]} 18. Qh4
{[%clk 0:02:47.2]} 18... Qf7 {[%clk 0:01:07.8]} 19. Rxd4 {[%clk 0:02:40.2]}
19... Nc6 {[%clk 0:01:07]} 20. Rd7 {[%clk 0:02:21.3]} 20... Qxd7 {[%clk
0:00:59.8]} 21. Qxf2 {[%clk 0:02:20.8]} 21... Rf8 {[%clk 0:00:56.9]} 22. Qe3
{[%clk 0:02:19.3]} 22... e5 {[%clk 0:00:52.6]} 23. Rd1 {[%clk 0:02:17.4]} 23...
Qf5 {[%clk 0:00:51.5]} 24. Nd5 {[%clk 0:02:15.8]} 24... h6 {[%clk 0:00:47.1]}
25. b3 {[%clk 0:02:05.5]} 25... Rf7 {[%clk 0:00:45.9]} 26. Kb2 {[%clk
0:01:58.5]} 26... Nd4 {[%clk 0:00:43.9]} 27. Rd2 {[%clk 0:01:58.5]} 27... Kh7
{[%clk 0:00:38.8]} 28. h3 {[%clk 0:01:56.2]} 28... Rd7 {[%clk 0:00:34.7]} 29. g4
{[%clk 0:01:53.1]} 29... Qg6 {[%clk 0:00:19.2]} 30. Qxe5 {[%clk 0:01:31.4]}
30... Nf3 {[%clk 0:00:18.7]} 31. Nf6+ {[%clk 0:01:31.5]} 31... Kh8 {[%clk
0:00:03.8]} 32. Qb8+ {[%clk 0:01:30.7]} 1-0

[Event "*** Titled Tuesday Blitz"]
[Site "Chess.com"]
[Date "2021.02.02"]
[Round "9"]
[White "Grieve72"]
[Black "Mimsychess"]
[Result "0-1"]
[WhiteElo "2489"]
[BlackElo "2384"]
[TimeControl "180+1"]
[EndTime "11:44:51 PST"]
[Termination "Mimsychess won by checkmate"]

1. d4 {[%clk 0:02:58.8]} 1... Nf6 {[%clk 0:02:58.3]} 2. Bg5 {[%clk 0:02:54.7]}
2... e6 {[%clk 0:02:57.1]} 3. Nd2 {[%clk 0:02:54.1]} 3... d5 {[%clk 0:02:55.5]}
4. e3 {[%clk 0:02:44.5]} 4... Be7 {[%clk 0:02:51.7]} 5. Bd3 {[%clk 0:02:44]}
5... Nbd7 {[%clk 0:02:51.4]} 6. Ngf3 {[%clk 0:02:43.7]} 6... b6 {[%clk
0:02:51.1]} 7. O-O {[%clk 0:02:34]} 7... Bb7 {[%clk 0:02:51.1]} 8. c3 {[%clk
0:02:32.9]} 8... Ne4 {[%clk 0:02:43.9]} 9. Bxe7 {[%clk 0:02:32.2]} 9... Qxe7
{[%clk 0:02:44.8]} 10. Qc2 {[%clk 0:01:56.9]} 10... f5 {[%clk 0:02:44.4]} 11.
Ne5 {[%clk 0:01:48.4]} 11... Nxe5 {[%clk 0:02:41.2]} 12. dxe5 {[%clk 0:01:49.3]}
12... O-O {[%clk 0:02:40.1]} 13. f4 {[%clk 0:01:42]} 13... Nxd2 {[%clk
0:02:30.8]} 14. Qxd2 {[%clk 0:01:41.7]} 14... c5 {[%clk 0:02:31.5]} 15. Rad1
{[%clk 0:01:33.5]} 15... Rad8 {[%clk 0:02:31.1]} 16. Qf2 {[%clk 0:01:26]} 16...
Kh8 {[%clk 0:02:21.7]} 17. Be2 {[%clk 0:01:19.5]} 17... g5 {[%clk 0:02:19.5]}
18. Rd2 {[%clk 0:01:16.5]} 18... Rg8 {[%clk 0:02:17.9]} 19. Rfd1 {[%clk
0:01:08.1]} 19... gxf4 {[%clk 0:02:06]} 20. exf4 {[%clk 0:01:09]} 20... Rg7
{[%clk 0:01:49]} 21. Bf3 {[%clk 0:01:05.9]} 21... Rdg8 {[%clk 0:01:48.3]} 22.
Qf1 {[%clk 0:00:48.4]} 22... d4 {[%clk 0:01:45]} 23. cxd4 {[%clk 0:00:43.8]}
23... cxd4 {[%clk 0:01:43.3]} 24. Rxd4 {[%clk 0:00:43.5]} 24... Bxf3 {[%clk
0:01:30.6]} 25. Qxf3 {[%clk 0:00:44.4]} 25... Qc5 {[%clk 0:01:30.9]} 26. Kh1
{[%clk 0:00:35.8]} 26... Rxg2 {[%clk 0:01:19.3]} 27. Qxg2 {[%clk 0:00:31.5]}
27... Rxg2 {[%clk 0:01:20.2]} 28. Kxg2 {[%clk 0:00:32.4]} 28... Qc2+ {[%clk
0:01:20]} 29. R1d2 {[%clk 0:00:32.2]} 29... Qb1 {[%clk 0:01:19.4]} 30. Rd7
{[%clk 0:00:15.7]} 30... Qe4+ {[%clk 0:01:16.8]} 31. Kg3 {[%clk 0:00:16]} 31...
Qe3+ {[%clk 0:01:16.9]} 32. Kh4 {[%clk 0:00:14.4]} 32... Qxf4+ {[%clk
0:01:16.9]} 33. Kh5 {[%clk 0:00:09]} 33... Qg4+ {[%clk 0:01:17.8]} 34. Kh6
{[%clk 0:00:09.4]} 34... Qg6# {[%clk 0:01:18.7]} 0-1

[Event "*** Titled Tuesday Blitz"]
[Site "Chess.com"]
[Date "2021.02.02"]
[Round "9"]
[White "Walter_White_Poland"]
[Black "BahadirOzen"]
[Result "1/2-1/2"]
[WhiteElo "2350"]
[BlackElo "2722"]
[TimeControl "180+1"]
[EndTime "11:44:53 PST"]
[Termination "Game drawn by agreement"]

1. e4 {[%clk 0:03:00.9]} 1... g6 {[%clk 0:02:59.3]} 2. d4 {[%clk 0:03:00.4]}
2... Bg7 {[%clk 0:02:59.8]} 3. Nc3 {[%clk 0:03:00.5]} 3... d6 {[%clk 0:02:59.8]}
4. h3 {[%clk 0:02:59.8]} 4... a6 {[%clk 0:02:58.9]} 5. a4 {[%clk 0:02:59]} 5...
Nc6 {[%clk 0:02:57.9]} 6. Nf3 {[%clk 0:02:58.7]} 6... Nf6 {[%clk 0:02:57.4]} 7.
Be3 {[%clk 0:02:57.6]} 7... O-O {[%clk 0:02:56.5]} 8. Be2 {[%clk 0:02:56.4]}
8... e5 {[%clk 0:02:46.9]} 9. dxe5 {[%clk 0:02:56.4]} 9... dxe5 {[%clk
0:02:45.3]} 10. Qxd8 {[%clk 0:02:54.6]} 10... Rxd8 {[%clk 0:02:45.1]} 11. O-O
{[%clk 0:02:55]} 11... Be6 {[%clk 0:02:44.3]} 12. Rfd1 {[%clk 0:02:54.6]} 12...
h6 {[%clk 0:02:39.1]} 13. Kf1 {[%clk 0:02:51.4]} 13... Kf8 {[%clk 0:02:33]} 14.
Bc5+ {[%clk 0:02:47]} 14... Ke8 {[%clk 0:02:32.7]} 15. Ke1 {[%clk 0:02:35]}
15... Bf8 {[%clk 0:02:00.6]} 16. Bxf8 {[%clk 0:02:34.5]} 16... Kxf8 {[%clk
0:02:00.4]} 17. Rxd8+ {[%clk 0:02:34.6]} 17... Rxd8 {[%clk 0:02:01.1]} 18. Rd1
{[%clk 0:02:34.9]} 18... Rxd1+ {[%clk 0:01:57.4]} 19. Kxd1 {[%clk 0:02:25.4]}
19... Ke7 {[%clk 0:01:57.1]} 20. Kd2 {[%clk 0:02:25.2]} 20... Kd6 {[%clk
0:01:56.8]} 21. Bd3 {[%clk 0:01:59.3]} 21... Nb4 {[%clk 0:01:43.9]} 22. Nd1
{[%clk 0:01:33.6]} 22... Nd7 {[%clk 0:01:30.6]} 23. Ne3 {[%clk 0:01:15.8]} 23...
Kc5 {[%clk 0:01:25.4]} 24. b3 {[%clk 0:01:09.1]} 24... Nxd3 {[%clk 0:01:21.7]}
25. Kxd3 {[%clk 0:01:09.3]} 25... Kb4 {[%clk 0:01:05.5]} 26. Nd2 {[%clk
0:01:08.3]} 26... b5 {[%clk 0:01:02.2]} 27. axb5 {[%clk 0:01:06.8]} 27... axb5
{[%clk 0:01:01.5]} 28. c3+ {[%clk 0:01:00.4]} 28... Ka3 {[%clk 0:00:48.4]} 29.
b4 {[%clk 0:01:00.5]} 29... c5 {[%clk 0:00:47.7]} 30. bxc5 {[%clk 0:00:59.7]}
30... Nxc5+ {[%clk 0:00:47.6]} 31. Kc2 {[%clk 0:00:59.4]} 31... h5 {[%clk
0:00:36.3]} 32. h4 {[%clk 0:00:57.2]} 1/2-1/2

[Event "*** Titled Tuesday Blitz"]
[Site "Chess.com"]
[Date "2021.02.02"]
[Round "9"]
[White "Kildepiotr"]
[Black "Zmeeed63"]
[Result "0-1"]
[WhiteElo "2581"]
[BlackElo "2412"]
[TimeControl "180+1"]
[EndTime "11:44:53 PST"]
[Termination "Zmeeed63 won by resignation"]

1. Nf3 {[%clk 0:03:00.9]} 1... d5 {[%clk 0:02:58.4]} 2. g3 {[%clk 0:03:00.8]}
2... Nf6 {[%clk 0:02:58.4]} 3. Bg2 {[%clk 0:03:00.7]} 3... c5 {[%clk 0:02:58.8]}
4. O-O {[%clk 0:03:01.2]} 4... Nc6 {[%clk 0:02:59.3]} 5. d3 {[%clk 0:03:01.8]}
5... e6 {[%clk 0:02:59.2]} 6. Nbd2 {[%clk 0:03:02.5]} 6... Be7 {[%clk
0:02:59.7]} 7. e4 {[%clk 0:03:03.1]} 7... b6 {[%clk 0:03:00.3]} 8. Qe2 {[%clk
0:03:03.3]} 8... Bb7 {[%clk 0:03:00.7]} 9. c3 {[%clk 0:03:03.7]} 9... Qc7 {[%clk
0:02:59.6]} 10. Re1 {[%clk 0:03:03.4]} 10... h6 {[%clk 0:02:59.6]} 11. a3 {[%clk
0:03:01.3]} 11... dxe4 {[%clk 0:02:58.4]} 12. dxe4 {[%clk 0:03:01]} 12... Rd8
{[%clk 0:02:57.6]} 13. Nf1 {[%clk 0:02:58.7]} 13... O-O {[%clk 0:02:56.1]} 14.
b4 {[%clk 0:02:52.6]} 14... cxb4 {[%clk 0:02:39.7]} 15. cxb4 {[%clk 0:02:52.2]}
15... Nd4 {[%clk 0:02:26.6]} 16. Nxd4 {[%clk 0:02:51.7]} 16... Rxd4 {[%clk
0:02:27.5]} 17. Bb2 {[%clk 0:02:50.7]} 17... Rd7 {[%clk 0:02:09.5]} 18. Rac1
{[%clk 0:02:49.2]} 18... Qb8 {[%clk 0:02:09.2]} 19. Red1 {[%clk 0:02:42.6]}
19... Rfd8 {[%clk 0:02:08.9]} 20. Rxd7 {[%clk 0:02:42.4]} 20... Rxd7 {[%clk
0:02:09.2]} 21. Ne3 {[%clk 0:02:38.1]} 21... Nxe4 {[%clk 0:01:47.9]} 22. Ng4
{[%clk 0:01:49.5]} 22... Rd2 {[%clk 0:01:32.1]} 23. Nxh6+ {[%clk 0:01:45.4]}
23... gxh6 {[%clk 0:01:31]} 24. Qg4+ {[%clk 0:01:44.9]} 24... Ng5 {[%clk
0:01:22.4]} 25. Bc3 {[%clk 0:01:39.3]} 25... Bxg2 {[%clk 0:01:07.9]} 26. Bxd2
{[%clk 0:01:31.4]} 26... Bf3 {[%clk 0:01:07.2]} 27. Qd4 {[%clk 0:01:27.2]} 27...
Bd5 {[%clk 0:00:36.8]} 28. Kf1 {[%clk 0:01:13.3]} 28... Qb7 {[%clk 0:00:32.9]}
29. h4 {[%clk 0:00:52.8]} 29... Bg2+ {[%clk 0:00:30.3]} 30. Ke1 {[%clk
0:00:53.1]} 30... Nf3+ {[%clk 0:00:30.2]} 0-1

[Event "*** Titled Tuesday Blitz"]
[Site "Chess.com"]
[Date "2021.02.02"]
[Round "9"]
[White "Fandorine"]
[Black "lachesisQ"]
[Result "0-1"]
[WhiteElo "2846"]
[BlackElo "3069"]
[TimeControl "180+1"]
[EndTime "11:44:54 PST"]
[Termination "lachesisQ won by checkmate"]

1. e4 {[%clk 0:03:00.9]} 1... c5 {[%clk 0:02:59.9]} 2. Nf3 {[%clk 0:03:01]} 2...
Nc6 {[%clk 0:03:00]} 3. Bb5 {[%clk 0:03:00.3]} 3... e6 {[%clk 0:02:59.5]} 4. c3
{[%clk 0:03:00.5]} 4... Nge7 {[%clk 0:02:58.5]} 5. d4 {[%clk 0:02:57.6]} 5...
cxd4 {[%clk 0:02:56.3]} 6. cxd4 {[%clk 0:02:57.8]} 6... a6 {[%clk 0:02:56.4]} 7.
Be2 {[%clk 0:02:53.7]} 7... d5 {[%clk 0:02:56.4]} 8. e5 {[%clk 0:02:53.5]} 8...
Qb6 {[%clk 0:02:56.4]} 9. Bd3 {[%clk 0:02:18.7]} 9... Bd7 {[%clk 0:02:51.9]} 10.
Bc2 {[%clk 0:02:17.3]} 10... Nb4 {[%clk 0:02:49.4]} 11. O-O {[%clk 0:02:14.6]}
11... Nxc2 {[%clk 0:02:47.3]} 12. Qxc2 {[%clk 0:02:15.5]} 12... Nf5 {[%clk
0:02:47.3]} 13. Be3 {[%clk 0:02:13]} 13... Rc8 {[%clk 0:02:45.8]} 14. Nc3 {[%clk
0:02:12.7]} 14... Bb4 {[%clk 0:02:43.1]} 15. a3 {[%clk 0:02:02.1]} 15... Bxc3
{[%clk 0:02:41.6]} 16. bxc3 {[%clk 0:02:03]} 16... O-O {[%clk 0:02:40.1]} 17. g4
{[%clk 0:01:38.5]} 17... Nxe3 {[%clk 0:02:08.5]} 18. fxe3 {[%clk 0:01:39.4]}
18... f6 {[%clk 0:02:09]} 19. exf6 {[%clk 0:01:37.8]} 19... gxf6 {[%clk
0:02:09.9]} 20. g5 {[%clk 0:01:35.3]} 20... Bb5 {[%clk 0:01:57.5]} 21. Rf2
{[%clk 0:01:22.6]} 21... Qc7 {[%clk 0:01:57.5]} 22. gxf6 {[%clk 0:01:16.1]}
22... Rxf6 {[%clk 0:01:54.8]} 23. a4 {[%clk 0:00:58.9]} 23... Bc4 {[%clk
0:01:43.2]} 24. Rg2+ {[%clk 0:00:52.8]} 24... Kh8 {[%clk 0:01:41.3]} 25. Ne5
{[%clk 0:00:53.2]} 25... Rcf8 {[%clk 0:01:40.3]} 26. h3 {[%clk 0:00:53.5]} 26...
Bf1 {[%clk 0:01:35.7]} 27. Rg3 {[%clk 0:00:46.1]} 27... Rf5 {[%clk 0:01:33]} 28.
Re1 {[%clk 0:00:38.2]} 28... Qe7 {[%clk 0:01:28.8]} 29. e4 {[%clk 0:00:34.4]}
29... Qh4 {[%clk 0:01:19.1]} 30. Ree3 {[%clk 0:00:21.4]} 30... Rg5 {[%clk
0:01:10.4]} 31. Qh2 {[%clk 0:00:16.4]} 31... Bxh3 {[%clk 0:01:10]} 32. Rxg5
{[%clk 0:00:15.7]} 32... Rf1# {[%clk 0:01:09.7]} 0-1